[Event "Open Nuevo Centro. Jornada 2"]
[Site "Chess.com"]
[Date "2020.06.26"]
[Round "3"]
[White "Sverdlik Roldán, Elías"]
[Black "Valverde Alcaide, Miguel Alejandro"]
[Result "0-1"]
[WhiteElo "351"]
[BlackElo "872"]
[TimeControl "180+2"]
[EndTime "10:59:28 PDT"]
[Termination "Victoria de mentafurterei por tiempo"]

1. e4 {[%clk 0:03:01.9]} 1... e5 {[%clk 0:03:00.4]} 2. Nf3 {[%clk 0:02:58.9]}
2... Nc6 {[%clk 0:02:59.4]} 3. d3 {[%clk 0:02:50.4]} 3... Nf6 {[%clk 0:02:54.6]}
4. Bd2 {[%clk 0:02:41.7]} 4... Bc5 {[%clk 0:02:52.1]} 5. Be2 {[%clk 0:02:34.5]}
5... Ng4 {[%clk 0:02:49.7]} 6. Be3 {[%clk 0:02:03.9]} 6... Bxe3 {[%clk
0:02:44.7]} 7. fxe3 {[%clk 0:02:04.4]} 7... Nxe3 {[%clk 0:02:45.7]} 8. Qd2
{[%clk 0:02:00.6]} 8... Ng4 {[%clk 0:02:38.8]} 9. Nc3 {[%clk 0:01:58]} 9... d6
{[%clk 0:02:34]} 10. d4 {[%clk 0:01:44.3]} 10... Nb4 {[%clk 0:02:30.1]} 11. dxe5
{[%clk 0:01:37.7]} 11... dxe5 {[%clk 0:02:26.7]} 12. Nd5 {[%clk 0:01:22.8]}
12... c6 {[%clk 0:02:12.9]} 13. Nxb4 {[%clk 0:01:17.7]} 13... Qxd2+ {[%clk
0:02:13.4]} 14. Nxd2 {[%clk 0:01:17.7]} 14... O-O {[%clk 0:02:14]} 15. Nf3
{[%clk 0:01:15.4]} 15... Rd8 {[%clk 0:02:11.9]} 16. Nd3 {[%clk 0:01:08.5]} 16...
Ne3 {[%clk 0:02:11.7]} 17. Nfxe5 {[%clk 0:00:58.8]} 17... Be6 {[%clk 0:02:09.4]}
18. Nc5 {[%clk 0:00:39]} 18... Nxc2+ {[%clk 0:02:08.7]} 19. Kf2 {[%clk
0:00:33.7]} 19... Nxa1 {[%clk 0:02:08.9]} 20. Rxa1 {[%clk 0:00:33.8]} 20... Rd2
{[%clk 0:02:05.1]} 21. Nxe6 {[%clk 0:00:31.8]} 21... fxe6 {[%clk 0:02:05.2]} 22.
Nf3 {[%clk 0:00:29.7]} 22... Rxb2 {[%clk 0:02:03.9]} 23. Rd1 {[%clk 0:00:29.7]}
23... h6 {[%clk 0:02:01.9]} 24. e5 {[%clk 0:00:30.8]} 24... Rxa2 {[%clk
0:01:59.7]} 25. Nd4 {[%clk 0:00:30.2]} 25... c5 {[%clk 0:01:57.9]} 26. Nb5
{[%clk 0:00:29.8]} 26... c4 {[%clk 0:01:55.2]} 27. Nc3 {[%clk 0:00:30.2]} 27...
Rb2 {[%clk 0:01:55]} 28. Rd4 {[%clk 0:00:19.8]} 28... b5 {[%clk 0:01:53.4]} 29.
h3 {[%clk 0:00:15.1]} 29... a5 {[%clk 0:01:53.2]} 30. Rd6 {[%clk 0:00:05.1]}
30... a4 {[%clk 0:01:52.2]} 31. Rxe6 {[%clk 0:00:03.4]} 31... b4 {[%clk
0:01:50.6]} 32. Rb6 {[%clk 0:00:03.3]} 32... bxc3 {[%clk 0:01:49.6]} 0

[Event "Open Nuevo Centro. Jornada 2"]
[Site "Chess.com"]
[Date "2020.06.26"]
[Round "3"]
[White "Rausell Taberner, Diego"]
[Black "Yeste Campos, Manuel"]
[Result "0-1"]
[WhiteElo "448"]
[BlackElo "922"]
[TimeControl "180+2"]
[EndTime "10:59:30 PDT"]
[Termination "Victoria de Manuel_Yeste por jaque mate"]

1. e4 {[%clk 0:03:01.9]} 1... e5 {[%clk 0:02:59.9]} 2. Nf3 {[%clk 0:03:00.4]}
2... Nc6 {[%clk 0:02:59.5]} 3. Bc4 {[%clk 0:03:00.5]} 3... Bc5 {[%clk 0:02:59]}
4. O-O {[%clk 0:02:59.9]} 4... Nf6 {[%clk 0:02:56]} 5. Nc3 {[%clk 0:02:56.7]}
5... O-O {[%clk 0:02:55.5]} 6. d3 {[%clk 0:02:55.9]} 6... d6 {[%clk 0:02:55.9]}
7. Bg5 {[%clk 0:02:53.5]} 7... Re8 {[%clk 0:02:43]} 8. h3 {[%clk 0:02:51]} 8...
h6 {[%clk 0:02:37]} 9. Bxh6 {[%clk 0:02:49.3]} 9... gxh6 {[%clk 0:02:33.4]} 10.
Nh4 {[%clk 0:02:49]} 10... Kh8 {[%clk 0:02:28.6]} 11. Bxf7 {[%clk 0:02:47.6]}
11... Rf8 {[%clk 0:02:22.7]} 12. Ng6+ {[%clk 0:02:46.4]} 12... Kg7 {[%clk
0:02:21.2]} 13. Nxf8 {[%clk 0:02:44.7]} 13... Kxf7 {[%clk 0:02:14.9]} 14. Qf3
{[%clk 0:02:40]} 14... Kxf8 {[%clk 0:02:03.1]} 15. Ne2 {[%clk 0:02:38.4]} 15...
Nd4 {[%clk 0:02:01.5]} 16. Nxd4 {[%clk 0:02:27]} 16... Bxd4 {[%clk 0:01:58.4]}
17. c3 {[%clk 0:02:27.3]} 17... Bc5 {[%clk 0:01:57]} 18. b4 {[%clk 0:02:25.3]}
18... Bb6 {[%clk 0:01:55.7]} 19. c4 {[%clk 0:02:25.1]} 19... Be6 {[%clk
0:01:40.1]} 20. a4 {[%clk 0:02:19]} 20... a5 {[%clk 0:01:36.5]} 21. bxa5 {[%clk
0:02:18.3]} 21... Bxa5 {[%clk 0:01:35.7]} 22. Rab1 {[%clk 0:02:14.5]} 22... b6
{[%clk 0:01:23.1]} 23. Qg3 {[%clk 0:02:06.8]} 23... Kf7 {[%clk 0:01:19.7]} 24.
h4 {[%clk 0:01:58]} 24... c5 {[%clk 0:01:04.2]} 25. h5 {[%clk 0:01:56.8]} 25...
Nxh5 {[%clk 0:01:00.4]} 26. Qf3+ {[%clk 0:01:48.6]} 26... Nf6 {[%clk 0:00:59.7]}
27. Qe3 {[%clk 0:01:48.2]} 27... Qg8 {[%clk 0:00:56.1]} 28. Qxh6 {[%clk
0:01:46.4]} 28... Ng4 {[%clk 0:00:51.3]} 29. Qh5+ {[%clk 0:01:44.5]} 29... Ke7
{[%clk 0:00:47.7]} 30. Qh4+ {[%clk 0:01:41.9]} 30... Kd7 {[%clk 0:00:46.6]} 31.
f3 {[%clk 0:01:27.8]} 31... Ne3 {[%clk 0:00:40.8]} 32. Rfe1 {[%clk 0:01:21.5]}
32... Bxe1 {[%clk 0:00:39]} 33. Qxe1 {[%clk 0:01:20.6]} 33... Qxg2# {[%clk
0:00:38.4]} 0

[Event "Open Nuevo Centro. Jornada 2"]
[Site "Chess.com"]
[Date "2020.06.26"]
[Round "3"]
[White "Rodriguez, Mathias"]
[Black "Garcia, Jhoel"]
[Result "1-0"]
[WhiteElo "1987"]
[BlackElo "2289"]
[TimeControl "180+2"]
[EndTime "10:59:43 PDT"]
[Termination "Victoria de niguil por abandono"]

1. e4 {[%clk 0:02:59.9]} 1... c5 {[%clk 0:03:01.5]} 2. Nf3 {[%clk 0:03:01.1]}
2... a6 {[%clk 0:03:03.1]} 3. g3 {[%clk 0:03:00.3]} 3... g6 {[%clk 0:03:00.4]}
4. Bg2 {[%clk 0:03:01.3]} 4... Bg7 {[%clk 0:03:01.9]} 5. O-O {[%clk 0:03:02]}
5... Nc6 {[%clk 0:03:02.8]} 6. c3 {[%clk 0:03:02.7]} 6... Nf6 {[%clk 0:03:00]}
7. Re1 {[%clk 0:03:03.5]} 7... O-O {[%clk 0:03:00.1]} 8. d4 {[%clk 0:03:04.1]}
8... cxd4 {[%clk 0:03:01.4]} 9. cxd4 {[%clk 0:03:06]} 9... d5 {[%clk 0:03:02.2]}
10. e5 {[%clk 0:03:05.8]} 10... Ne4 {[%clk 0:03:01.6]} 11. Nbd2 {[%clk
0:03:07.2]} 11... f5 {[%clk 0:03:00]} 12. exf6 {[%clk 0:03:04.3]} 12... exf6
{[%clk 0:02:48.2]} 13. Nxe4 {[%clk 0:03:03.1]} 13... dxe4 {[%clk 0:02:49.5]} 14.
Rxe4 {[%clk 0:03:04.3]} 14... f5 {[%clk 0:02:46.8]} 15. Re2 {[%clk 0:02:54.2]}
15... Nxd4 {[%clk 0:02:44.7]} 16. Nxd4 {[%clk 0:02:49.3]} 16... Qxd4 {[%clk
0:02:43.7]} 17. Be3 {[%clk 0:02:50.1]} 17... Qf6 {[%clk 0:02:36.6]} 18. Rc1
{[%clk 0:02:23.9]} 18... Be6 {[%clk 0:02:21.3]} 19. Bxb7 {[%clk 0:02:05.5]}
19... Rab8 {[%clk 0:02:22.4]} 20. Bd5 {[%clk 0:02:06.4]} 20... Rfd8 {[%clk
0:01:40.6]} 21. Bxe6+ {[%clk 0:01:58.4]} 21... Qxe6 {[%clk 0:01:41.6]} 22. Qa4
{[%clk 0:01:44.8]} 22... Rxb2 {[%clk 0:01:21.5]} 23. Rxb2 {[%clk 0:01:38.7]}
23... Bxb2 {[%clk 0:01:22.7]} 24. Rc6 {[%clk 0:01:40]} 24... Rd1+ {[%clk
0:00:58.1]} 25. Qxd1 {[%clk 0:01:37.7]} 25... Qxc6 {[%clk 0:00:58.6]} 26. Qb3+
{[%clk 0:01:39.2]} 26... Kf8 {[%clk 0:00:55.8]} 27. Qxb2 {[%clk 0:01:37.2]}
27... f4 {[%clk 0:00:55.7]} 28. Bxf4 {[%clk 0:01:36.6]} 28... Qe4 {[%clk
0:00:55.3]} 29. Qh8+ {[%clk 0:01:33.4]} 29... Kf7 {[%clk 0:00:55.7]} 30. Qxh7+
{[%clk 0:01:33.3]} 30... Ke6 {[%clk 0:00:56.8]} 31. Qg8+ {[%clk 0:01:34.4]}
31... Kf5 {[%clk 0:00:55.7]} 32. Qc8+ {[%clk 0:01:31.6]} 32... Kf6 {[%clk
0:00:56.3]} 33. Qxa6+ {[%clk 0:01:25.5]} 33... Kf5 {[%clk 0:00:57.5]} 34. Qb5+
{[%clk 0:01:21.3]} 34... Kg4 {[%clk 0:00:55.2]} 35. Qd7+ {[%clk 0:01:16.2]}
35... Kf3 {[%clk 0:00:49.9]} 36. Qd1+ {[%clk 0:01:16.6]} 36... Qe2 {[%clk
0:00:49.5]} 37. Qxe2+ {[%clk 0:01:17.6]} 37... Kxe2 {[%clk 0:00:51]} 38. a4
{[%clk 0:01:19.5]} 1

[Event "Open Nuevo Centro. Jornada 2"]
[Site "Chess.com"]
[Date "2020.06.26"]
[Round "3"]
[White "Albuixech Sanz, Jorge"]
[Black "Castellano López, Javier"]
[Result "0-1"]
[WhiteElo "1361"]
[BlackElo "1781"]
[TimeControl "180+2"]
[EndTime "10:59:51 PDT"]
[Termination "Victoria de its_xavi_official por tiempo"]

1. e4 {[%clk 0:03:01.9]} 1... d5 {[%clk 0:02:57.2]} 2. exd5 {[%clk 0:03:02]}
2... Qxd5 {[%clk 0:02:59.1]} 3. Nc3 {[%clk 0:03:02.5]} 3... Qa5 {[%clk 0:03:00]}
4. Bc4 {[%clk 0:03:02.6]} 4... Nf6 {[%clk 0:02:59.9]} 5. Nge2 {[%clk 0:03:03.5]}
5... Bf5 {[%clk 0:02:59.8]} 6. d3 {[%clk 0:03:03.4]} 6... c6 {[%clk 0:03:00.3]}
7. O-O {[%clk 0:03:03.3]} 7... e6 {[%clk 0:03:01.4]} 8. Bd2 {[%clk 0:03:00.3]}
8... Qc7 {[%clk 0:02:59.4]} 9. Nd4 {[%clk 0:02:52.1]} 9... Bg4 {[%clk
0:02:54.5]} 10. Qe1 {[%clk 0:02:45.3]} 10... Be7 {[%clk 0:02:51]} 11. Qe3 {[%clk
0:02:16.7]} 11... O-O {[%clk 0:02:49.3]} 12. Rfe1 {[%clk 0:02:10.4]} 12... Bc5
{[%clk 0:02:42.4]} 13. Ne4 {[%clk 0:01:58.9]} 13... Nxe4 {[%clk 0:02:40.3]} 14.
Qxe4 {[%clk 0:01:59.6]} 14... Bxd4 {[%clk 0:02:24.4]} 15. Qxd4 {[%clk
0:01:49.5]} 15... Bf5 {[%clk 0:02:19.6]} 16. Bf4 {[%clk 0:01:43.7]} 16... Qb6
{[%clk 0:02:15.8]} 17. Qc3 {[%clk 0:01:25.6]} 17... Nd7 {[%clk 0:02:08.4]} 18.
d4 {[%clk 0:01:01.9]} 18... Nf6 {[%clk 0:02:06.6]} 19. Rad1 {[%clk 0:00:52.5]}
19... Rfd8 {[%clk 0:02:03.6]} 20. Be5 {[%clk 0:00:46.3]} 20... Nd5 {[%clk
0:01:49.1]} 21. Bxd5 {[%clk 0:00:39.4]} 21... Rxd5 {[%clk 0:01:51]} 22. b3
{[%clk 0:00:38.2]} 22... a5 {[%clk 0:01:43.9]} 23. Qd2 {[%clk 0:00:34.1]} 23...
Rad8 {[%clk 0:01:37.3]} 24. c4 {[%clk 0:00:34.1]} 24... R5d7 {[%clk 0:01:37.2]}
25. Qf4 {[%clk 0:00:26.4]} 25... Bg6 {[%clk 0:01:26.1]} 26. h4 {[%clk
0:00:21.1]} 26... c5 {[%clk 0:01:19.7]} 27. dxc5 {[%clk 0:00:12.3]} 27... Qxc5
{[%clk 0:01:10.4]} 28. Rxd7 {[%clk 0:00:11.7]} 28... Rxd7 {[%clk 0:01:12.3]} 29.
Qg3 {[%clk 0:00:04]} 29... h5 {[%clk 0:01:09.5]} 0

[Event "Open Nuevo Centro. Jornada 2"]
[Site "Chess.com"]
[Date "2020.06.26"]
[Round "3"]
[White "García Giménez, Santiago"]
[Black "Sanchez Saez, Francisco"]
[Result "0-1"]
[WhiteElo "1884"]
[BlackElo "2290"]
[TimeControl "180+2"]
[EndTime "10:59:57 PDT"]
[Termination "Victoria de Pacman1995 por abandono"]

1. e4 {[%clk 0:03:01.9]} 1... c5 {[%clk 0:02:56.8]} 2. Nf3 {[%clk 0:03:02.2]}
2... d6 {[%clk 0:02:53.9]} 3. Bb5+ {[%clk 0:03:02.9]} 3... Nd7 {[%clk
0:02:54.2]} 4. O-O {[%clk 0:03:02.8]} 4... a6 {[%clk 0:02:54]} 5. Be2 {[%clk
0:03:02.1]} 5... Ngf6 {[%clk 0:02:54.5]} 6. Nc3 {[%clk 0:03:02.3]} 6... e5
{[%clk 0:02:54.6]} 7. a4 {[%clk 0:03:00.7]} 7... b6 {[%clk 0:02:51.1]} 8. Re1
{[%clk 0:02:58.5]} 8... g6 {[%clk 0:01:06.7]} 9. Bc4 {[%clk 0:02:46.4]} 9... Bg7
{[%clk 0:01:07.4]} 10. d3 {[%clk 0:02:47.4]} 10... O-O {[%clk 0:01:08]} 11. Bg5
{[%clk 0:02:26.9]} 11... h6 {[%clk 0:01:08.3]} 12. Bh4 {[%clk 0:02:27.5]} 12...
g5 {[%clk 0:01:06.6]} 13. Bg3 {[%clk 0:02:28.3]} 13... Nh5 {[%clk 0:00:59.4]}
14. Qb1 {[%clk 0:02:06.4]} 14... Nf4 {[%clk 0:00:57.9]} 15. Qa2 {[%clk
0:02:02.1]} 15... Nf6 {[%clk 0:00:57.3]} 16. Qb3 {[%clk 0:02:00]} 16... Bg4
{[%clk 0:00:51.6]} 17. Nd2 {[%clk 0:01:56.5]} 17... Ne6 {[%clk 0:00:41.3]} 18.
Bxe6 {[%clk 0:01:22.7]} 18... Bxe6 {[%clk 0:00:41.2]} 19. Nc4 {[%clk 0:01:22.8]}
19... Rb8 {[%clk 0:00:29.6]} 20. Nd5 {[%clk 0:00:38]} 20... Nxd5 {[%clk
0:00:27.4]} 21. exd5 {[%clk 0:00:38.6]} 21... Bxd5 {[%clk 0:00:28.3]} 22. Qa3
{[%clk 0:00:39.5]} 22... Bxc4 {[%clk 0:00:27.9]} 23. dxc4 {[%clk 0:00:40.2]}
23... f5 {[%clk 0:00:28.3]} 24. Rad1 {[%clk 0:00:39.9]} 24... f4 {[%clk
0:00:28.8]} 0

[Event "Open Nuevo Centro. Jornada 2"]
[Site "Chess.com"]
[Date "2020.06.26"]
[Round "3"]
[White "Kovacevic, Slobodan"]
[Black "Roca Cruz, Rafael"]
[Result "1-0"]
[WhiteElo "2112"]
[BlackElo "1728"]
[TimeControl "180+2"]
[EndTime "10:59:59 PDT"]
[Termination "Victoria de nikko110 por abandono"]

1. e3 {[%clk 0:02:49.3]} 1... c5 {[%clk 0:02:58]} 2. c4 {[%clk 0:02:47]} 2... e6
{[%clk 0:02:58.6]} 3. b3 {[%clk 0:02:46.3]} 3... Nf6 {[%clk 0:02:57.1]} 4. Bb2
{[%clk 0:02:45.2]} 4... Be7 {[%clk 0:02:58.3]} 5. Nf3 {[%clk 0:02:44.2]} 5...
O-O {[%clk 0:02:59.1]} 6. Be2 {[%clk 0:02:42.9]} 6... d6 {[%clk 0:02:59.8]} 7.
O-O {[%clk 0:02:41.3]} 7... Nc6 {[%clk 0:03:01]} 8. d3 {[%clk 0:02:39.9]} 8...
b6 {[%clk 0:02:58.4]} 9. Nbd2 {[%clk 0:02:35.8]} 9... Bb7 {[%clk 0:02:57.9]} 10.
Rc1 {[%clk 0:02:34.5]} 10... Nd7 {[%clk 0:02:50.5]} 11. Qc2 {[%clk 0:02:33.1]}
11... Bf6 {[%clk 0:02:51.1]} 12. a3 {[%clk 0:02:31.9]} 12... Bxb2 {[%clk
0:02:45.7]} 13. Qxb2 {[%clk 0:02:30.7]} 13... Qf6 {[%clk 0:02:46.7]} 14. Qb1
{[%clk 0:02:29.8]} 14... Nce5 {[%clk 0:02:29.6]} 15. b4 {[%clk 0:02:25.9]} 15...
Rab8 {[%clk 0:02:27.5]} 16. d4 {[%clk 0:02:23.4]} 16... Nxf3+ {[%clk 0:02:26.6]}
17. Nxf3 {[%clk 0:02:21.9]} 17... Bxf3 {[%clk 0:02:23.5]} 18. Bxf3 {[%clk
0:02:20.8]} 18... cxd4 {[%clk 0:02:24.7]} 19. exd4 {[%clk 0:02:13.9]} 19... Qxd4
{[%clk 0:02:25.7]} 20. Qc2 {[%clk 0:02:10.6]} 20... Ne5 {[%clk 0:02:16.3]} 21.
Be2 {[%clk 0:02:08.8]} 21... Rfd8 {[%clk 0:02:13.2]} 22. Rfd1 {[%clk 0:02:07.4]}
22... Qh4 {[%clk 0:02:08.7]} 23. Qc3 {[%clk 0:01:59.5]} 23... Ng4 {[%clk
0:01:48.6]} 24. Bxg4 {[%clk 0:01:50.3]} 24... Qxg4 {[%clk 0:01:49.3]} 25. Rd4
{[%clk 0:01:48.9]} 25... Qg5 {[%clk 0:01:38.5]} 26. Rcd1 {[%clk 0:01:47.3]}
26... Qe7 {[%clk 0:00:29.8]} 27. Qd3 {[%clk 0:01:44.6]} 27... Kf8 {[%clk
0:00:21.5]} 28. g3 {[%clk 0:01:39.9]} 28... Rbc8 {[%clk 0:00:21.3]} 29. Qxh7
{[%clk 0:01:38.1]} 29... Qf6 {[%clk 0:00:14.8]} 30. Rxd6 {[%clk 0:01:32.3]}
30... Rxd6 {[%clk 0:00:15.1]} 31. Rxd6 {[%clk 0:01:30.1]} 31... Qa1+ {[%clk
0:00:02.7]} 32. Kg2 {[%clk 0:01:28.6]} 32... Qb1 {[%clk 0:00:03.4]} 33. Qxb1
{[%clk 0:01:25.2]} 1

[Event "Open Nuevo Centro. Jornada 2"]
[Site "Chess.com"]
[Date "2020.06.26"]
[Round "3"]
[White "Randazzo, Adrián"]
[Black "Vega Gutiérrez, Sabrina"]
[Result "1-0"]
[WhiteElo "2469"]
[BlackElo "2022"]
[TimeControl "180+2"]
[EndTime "11:00:20 PDT"]
[Termination "Victoria de Nikithebest por jaque mate"]

1. e4 {[%clk 0:03:01.9]} 1... c5 {[%clk 0:03:00.3]} 2. Nf3 {[%clk 0:03:02.9]}
2... Nc6 {[%clk 0:03:01.6]} 3. Bb5 {[%clk 0:03:02.7]} 3... Nf6 {[%clk
0:03:02.3]} 4. Nc3 {[%clk 0:03:02.6]} 4... Qc7 {[%clk 0:03:01.9]} 5. O-O {[%clk
0:03:02.8]} 5... Nd4 {[%clk 0:02:45.6]} 6. Re1 {[%clk 0:02:45.6]} 6... a6 {[%clk
0:02:46.5]} 7. Bf1 {[%clk 0:02:44.1]} 7... Ng4 {[%clk 0:02:46.5]} 8. e5 {[%clk
0:02:43]} 8... Nxf3+ {[%clk 0:02:40.4]} 9. Qxf3 {[%clk 0:02:40.2]} 9... Nxe5
{[%clk 0:02:41.9]} 10. Qg3 {[%clk 0:02:35.4]} 10... d6 {[%clk 0:02:39]} 11. f4
{[%clk 0:02:33.9]} 11... Nc6 {[%clk 0:02:31.7]} 12. Nd5 {[%clk 0:02:35.2]} 12...
Qd8 {[%clk 0:02:26]} 13. b3 {[%clk 0:02:36.7]} 13... Be6 {[%clk 0:02:13.2]} 14.
Ne3 {[%clk 0:02:35.5]} 14... Nd4 {[%clk 0:02:13.6]} 15. c3 {[%clk 0:02:34.5]}
15... Nf5 {[%clk 0:02:11.7]} 16. Nxf5 {[%clk 0:02:34.7]} 16... Bxf5 {[%clk
0:02:12.8]} 17. Bb2 {[%clk 0:02:28.1]} 17... d5 {[%clk 0:01:36]} 18. Qf3 {[%clk
0:02:18.5]} 18... Qd7 {[%clk 0:01:34.6]} 19. h3 {[%clk 0:02:18.1]} 19... g6
{[%clk 0:01:13.2]} 20. c4 {[%clk 0:02:15.2]} 20... d4 {[%clk 0:01:13.9]} 21. g4
{[%clk 0:02:15.2]} 21... Be6 {[%clk 0:01:14.7]} 22. Bg2 {[%clk 0:02:11.8]} 22...
O-O-O {[%clk 0:01:11.4]} 23. Re5 {[%clk 0:02:10.4]} 23... Bg7 {[%clk 0:00:47.8]}
24. Rxc5+ {[%clk 0:02:08.7]} 24... Kb8 {[%clk 0:00:48.9]} 25. f5 {[%clk
0:02:08.8]} 25... gxf5 {[%clk 0:00:37.9]} 26. gxf5 {[%clk 0:02:10.7]} 26... Rhg8
{[%clk 0:00:17.3]} 27. fxe6 {[%clk 0:02:04.5]} 27... fxe6 {[%clk 0:00:19.2]} 28.
Kh1 {[%clk 0:01:45.1]} 28... Bf6 {[%clk 0:00:20.2]} 29. b4 {[%clk 0:01:38.6]}
29... Ka7 {[%clk 0:00:19.4]} 30. b5 {[%clk 0:01:38.1]} 30... Rb8 {[%clk
0:00:12.9]} 31. Ba3 {[%clk 0:01:22.4]} 31... b6 {[%clk 0:00:05.8]} 32. Rc6
{[%clk 0:01:18.1]} 32... axb5 {[%clk 0:00:03.1]} 33. cxb5 {[%clk 0:01:10.1]}
33... Be5 {[%clk 0:00:04.7]} 34. Bc5 {[%clk 0:01:07.1]} 34... Rxg2 {[%clk
0:00:04.4]} 35. Qa3+ {[%clk 0:01:03.5]} 35... Kb7 {[%clk 0:00:05.2]} 36. Qa6#
{[%clk 0:01:04.2]} 1

[Event "Open Nuevo Centro. Jornada 2"]
[Site "Chess.com"]
[Date "2020.06.26"]
[Round "3"]
[White "Macias Pino, Diego"]
[Black "García Oviedo, Alejandro"]
[Result "1-0"]
[WhiteElo "2205"]
[BlackElo "1847"]
[TimeControl "180+2"]
[EndTime "11:00:27 PDT"]
[Termination "Victoria de jesuimafe por jaque mate"]

1. e4 {[%clk 0:03:01.9]} 1... d5 {[%clk 0:02:58.4]} 2. exd5 {[%clk 0:03:01.2]}
2... Qxd5 {[%clk 0:03:00.3]} 3. Nc3 {[%clk 0:02:58.6]} 3... Qa5 {[%clk
0:03:01.8]} 4. d4 {[%clk 0:02:59.6]} 4... Nf6 {[%clk 0:03:01.6]} 5. Bc4 {[%clk
0:02:49.4]} 5... Bf5 {[%clk 0:03:02.2]} 6. Nf3 {[%clk 0:02:37.9]} 6... e6 {[%clk
0:03:03.1]} 7. Ne5 {[%clk 0:02:34.1]} 7... Nbd7 {[%clk 0:02:56.7]} 8. f4 {[%clk
0:02:17.3]} 8... Nxe5 {[%clk 0:02:33.4]} 9. fxe5 {[%clk 0:02:05.9]} 9... Ne4
{[%clk 0:02:33.1]} 10. Bd2 {[%clk 0:02:06.5]} 10... Nxd2 {[%clk 0:02:32.7]} 11.
Qxd2 {[%clk 0:02:07.2]} 11... Bb4 {[%clk 0:02:28.7]} 12. O-O {[%clk 0:02:03.5]}
12... O-O-O {[%clk 0:02:25.5]} 13. Kh1 {[%clk 0:01:46.6]} 13... Bg6 {[%clk
0:01:57.3]} 14. a3 {[%clk 0:01:32.9]} 14... Bxc3 {[%clk 0:01:56]} 15. bxc3
{[%clk 0:01:33.8]} 15... Qxe5 {[%clk 0:01:51.4]} 16. Rab1 {[%clk 0:01:27.3]}
16... Qe4 {[%clk 0:01:43.3]} 17. Bd3 {[%clk 0:01:18.5]} 17... Qc6 {[%clk
0:01:40.4]} 18. Rb4 {[%clk 0:01:01.6]} 18... Bxd3 {[%clk 0:01:29.5]} 19. cxd3
{[%clk 0:00:58.6]} 19... f6 {[%clk 0:01:29.5]} 20. Rfb1 {[%clk 0:00:57.6]} 20...
b6 {[%clk 0:01:30.8]} 21. a4 {[%clk 0:00:55.7]} 21... a5 {[%clk 0:01:31.9]} 22.
Rb5 {[%clk 0:00:56.3]} 22... Rd5 {[%clk 0:01:32.3]} 23. R5b4 {[%clk 0:00:39.7]}
23... Rg5 {[%clk 0:01:32.1]} 24. Rb5 {[%clk 0:00:34.2]} 24... Rxb5 {[%clk
0:01:20.8]} 25. Rxb5 {[%clk 0:00:33]} 25... Rd8 {[%clk 0:01:21.9]} 26. h3 {[%clk
0:00:31.7]} 26... Rd5 {[%clk 0:01:21.2]} 27. Rb4 {[%clk 0:00:31.3]} 27... Rf5
{[%clk 0:01:05.8]} 28. Rb1 {[%clk 0:00:28.6]} 28... Qxa4 {[%clk 0:01:04.9]} 29.
Qe2 {[%clk 0:00:26]} 29... Kd7 {[%clk 0:00:59.3]} 30. c4 {[%clk 0:00:25.6]}
30... Qc6 {[%clk 0:00:58]} 31. Re1 {[%clk 0:00:24.8]} 31... Rf4 {[%clk
0:00:55.1]} 32. d5 {[%clk 0:00:24.6]} 32... Qd6 {[%clk 0:00:52.5]} 33. dxe6+
{[%clk 0:00:24.7]} 33... Ke7 {[%clk 0:00:52.4]} 34. Qh5 {[%clk 0:00:25.2]} 34...
Qb4 {[%clk 0:00:45.8]} 35. Qf7+ {[%clk 0:00:23.5]} 35... Kd6 {[%clk 0:00:47.1]}
36. Qd7+ {[%clk 0:00:23.8]} 36... Kc5 {[%clk 0:00:48.6]} 37. Qd5# {[%clk
0:00:25.3]} 1

[Event "Open Nuevo Centro. Jornada 2"]
[Site "Chess.com"]
[Date "2020.06.26"]
[Round "3"]
[White "Colomer Martinez, Isabel"]
[Black "Cayon Pelaez, Pablo"]
[Result "0-1"]
[WhiteElo "1198"]
[BlackElo "1773"]
[TimeControl "180+2"]
[EndTime "11:00:27 PDT"]
[Termination "Victoria de Ataquedefinitivo por tiempo"]

1. e4 {[%clk 0:03:01.9]} 1... e5 {[%clk 0:03:00.5]} 2. Nf3 {[%clk 0:03:00.4]}
2... Nc6 {[%clk 0:03:00.9]} 3. Bc4 {[%clk 0:02:58.9]} 3... Bc5 {[%clk
0:03:01.3]} 4. Nc3 {[%clk 0:02:57.3]} 4... d6 {[%clk 0:02:59.9]} 5. d3 {[%clk
0:02:56.6]} 5... Nf6 {[%clk 0:02:59.2]} 6. O-O {[%clk 0:02:40.5]} 6... h6 {[%clk
0:02:57.3]} 7. h3 {[%clk 0:02:40.6]} 7... O-O {[%clk 0:02:57.9]} 8. a3 {[%clk
0:02:36.6]} 8... a6 {[%clk 0:02:54.6]} 9. Nd5 {[%clk 0:02:32.8]} 9... Be6 {[%clk
0:02:47.5]} 10. Re1 {[%clk 0:02:14.2]} 10... Bxd5 {[%clk 0:02:29.6]} 11. exd5
{[%clk 0:02:12.5]} 11... Ne7 {[%clk 0:02:29.8]} 12. d4 {[%clk 0:02:02.3]} 12...
exd4 {[%clk 0:02:17.9]} 13. Nxd4 {[%clk 0:02:00]} 13... Nexd5 {[%clk 0:02:02.8]}
14. Bxd5 {[%clk 0:01:55.1]} 14... Nxd5 {[%clk 0:02:02.6]} 15. Nf5 {[%clk
0:01:49.8]} 15... Nf6 {[%clk 0:01:30]} 16. Qf3 {[%clk 0:01:39.6]} 16... Qd7
{[%clk 0:01:13.9]} 17. b4 {[%clk 0:01:22.7]} 17... Bb6 {[%clk 0:01:05.6]} 18.
Bb2 {[%clk 0:00:52.6]} 18... Kh7 {[%clk 0:00:36.6]} 19. Bxf6 {[%clk 0:00:42.5]}
19... gxf6 {[%clk 0:00:38.5]} 20. Qg4 {[%clk 0:00:30.9]} 20... Rg8 {[%clk
0:00:29.7]} 21. Qf4 {[%clk 0:00:19.1]} 21... Rg5 {[%clk 0:00:18.9]} 22. g4
{[%clk 0:00:07.8]} 22... Re8 {[%clk 0:00:12.3]} 23. Rxe8 {[%clk 0:00:04.2]}
23... Qxe8 {[%clk 0:00:14.2]} 0